[Event "*** Titled Tuesday Blitz"]
[Site "Chess.com"]
[Date "2021.04.20"]
[Round "9"]
[White "Eloist"]
[Black "AndreyNeves"]
[Result "1-0"]
[WhiteElo "2363"]
[BlackElo "2253"]
[TimeControl "180+1"]
[EndTime "11:44:31 PDT"]
[Termination "Eloist won by resignation"]

1. e4 {[%clk 0:03:00.9]} 1... e5 {[%clk 0:02:59.3]} 2. Bc4 {[%clk 0:03:00.3]}
2... Nf6 {[%clk 0:02:58.4]} 3. d3 {[%clk 0:03:00]} 3... c6 {[%clk 0:02:58.1]} 4.
Nf3 {[%clk 0:03:00.1]} 4... d5 {[%clk 0:02:57.9]} 5. Bb3 {[%clk 0:03:00.2]} 5...
Bd6 {[%clk 0:02:48]} 6. exd5 {[%clk 0:02:57.4]} 6... cxd5 {[%clk 0:02:47.5]} 7.
Bg5 {[%clk 0:02:56.4]} 7... Be6 {[%clk 0:02:44.2]} 8. Nc3 {[%clk 0:02:54.3]}
8... Qa5 {[%clk 0:02:18.4]} 9. O-O {[%clk 0:02:45.3]} 9... Nbd7 {[%clk
0:02:15.3]} 10. Qe1 {[%clk 0:02:42.9]} 10... O-O {[%clk 0:02:01.1]} 11. Bxf6
{[%clk 0:02:28.5]} 11... gxf6 {[%clk 0:01:52.5]} 12. Nxd5 {[%clk 0:02:25.6]}
12... Qxe1 {[%clk 0:01:50.4]} 13. Rfxe1 {[%clk 0:02:24.7]} 13... Kg7 {[%clk
0:01:45.4]} 14. Ne3 {[%clk 0:02:21.8]} 14... Nb6 {[%clk 0:01:36.4]} 15. Nh4
{[%clk 0:02:16.2]} 15... Bb4 {[%clk 0:01:28.7]} 16. c3 {[%clk 0:02:03.4]} 16...
Bc5 {[%clk 0:01:28.8]} 17. d4 {[%clk 0:02:01.6]} 17... exd4 {[%clk 0:01:25.1]}
18. cxd4 {[%clk 0:02:02.5]} 18... Bb4 {[%clk 0:01:24.6]} 19. Nef5+ {[%clk
0:01:59]} 19... Kh8 {[%clk 0:01:21]} 20. Re4 {[%clk 0:01:46.9]} 20... Bxb3
{[%clk 0:01:18.6]} 21. axb3 {[%clk 0:01:46.3]} 21... Nd5 {[%clk 0:01:18.6]} 22.
Ne3 {[%clk 0:01:40.2]} 22... Rfd8 {[%clk 0:01:14.7]} 23. Nhf5 {[%clk 0:01:34.7]}
23... a6 {[%clk 0:01:06.5]} 24. Rc1 {[%clk 0:01:16.5]} 24... Nxe3 {[%clk
0:01:03.2]} 25. fxe3 {[%clk 0:01:11.4]} 25... Re8 {[%clk 0:00:58.9]} 26. Rxe8+
{[%clk 0:01:09.2]} 26... Rxe8 {[%clk 0:00:57.9]} 27. Rc7 {[%clk 0:01:08.9]}
27... b5 {[%clk 0:00:43.6]} 28. Kf2 {[%clk 0:01:00.1]} 28... h5 {[%clk
0:00:35.1]} 29. Kf3 {[%clk 0:00:58.5]} 29... Rg8 {[%clk 0:00:24.8]} 30. Rxf7
{[%clk 0:00:54.8]} 30... a5 {[%clk 0:00:20.1]} 31. e4 {[%clk 0:00:53.5]} 31...
a4 {[%clk 0:00:20]} 32. Rxf6 {[%clk 0:00:52.9]} 32... Rc8 {[%clk 0:00:15.2]} 33.
Rb6 {[%clk 0:00:44.4]} 33... axb3 {[%clk 0:00:13.4]} 34. Rxb5 {[%clk 0:00:44.4]}
34... Rc4 {[%clk 0:00:07.6]} 35. e5 {[%clk 0:00:42.2]} 35... Kh7 {[%clk
0:00:06.7]} 36. Ke4 {[%clk 0:00:40]} 36... Kg6 {[%clk 0:00:06.4]} 37. Rb6+
{[%clk 0:00:39.5]} 37... Kg5 {[%clk 0:00:05.8]} 38. h4+ {[%clk 0:00:39.4]} 1-0

[Event "*** Titled Tuesday Blitz"]
[Site "Chess.com"]
[Date "2021.04.20"]
[Round "9"]
[White "juancruzarias"]
[Black "bricolageur"]
[Result "1-0"]
[WhiteElo "2571"]
[BlackElo "2371"]
[TimeControl "180+1"]
[EndTime "11:44:32 PDT"]
[Termination "juancruzarias won on time"]

1. d4 {[%clk 0:03:00.9]} 1... Nf6 {[%clk 0:02:59.4]} 2. Nf3 {[%clk 0:03:01.3]}
2... g6 {[%clk 0:02:59.6]} 3. Bg5 {[%clk 0:03:00.9]} 3... Bg7 {[%clk 0:02:59.6]}
4. Nbd2 {[%clk 0:03:01.1]} 4... d6 {[%clk 0:02:58.5]} 5. c3 {[%clk 0:03:00.8]}
5... O-O {[%clk 0:02:58.2]} 6. e4 {[%clk 0:03:01.1]} 6... Nc6 {[%clk 0:02:58.8]}
7. Be2 {[%clk 0:03:00.1]} 7... e5 {[%clk 0:02:58.9]} 8. dxe5 {[%clk 0:03:01]}
8... Nxe5 {[%clk 0:02:58.6]} 9. Nxe5 {[%clk 0:03:00.8]} 9... dxe5 {[%clk
0:02:59.5]} 10. O-O {[%clk 0:03:01.7]} 10... Qe7 {[%clk 0:02:58]} 11. Qc2 {[%clk
0:03:00.7]} 11... a5 {[%clk 0:02:56.1]} 12. a4 {[%clk 0:03:00.3]} 12... b6
{[%clk 0:02:56.5]} 13. Rfe1 {[%clk 0:02:58.2]} 13... Bb7 {[%clk 0:02:56.1]} 14.
Bf1 {[%clk 0:02:56]} 14... Rad8 {[%clk 0:02:53.4]} 15. Nc4 {[%clk 0:02:54.5]}
15... Qc5 {[%clk 0:02:49.2]} 16. Be3 {[%clk 0:02:46.3]} 16... Qe7 {[%clk
0:02:40.3]} 17. f3 {[%clk 0:02:46.3]} 17... Nh5 {[%clk 0:02:30.8]} 18. b4 {[%clk
0:02:30.8]} 18... axb4 {[%clk 0:02:27.9]} 19. cxb4 {[%clk 0:02:31.7]} 19... Qxb4
{[%clk 0:01:57.7]} 20. Reb1 {[%clk 0:02:28.2]} 20... Qe7 {[%clk 0:01:52.5]} 21.
a5 {[%clk 0:02:26.5]} 21... Ra8 {[%clk 0:01:08.8]} 22. axb6 {[%clk 0:02:22.7]}
22... cxb6 {[%clk 0:01:05]} 23. Nxb6 {[%clk 0:02:21]} 23... Rxa1 {[%clk
0:00:53.5]} 24. Rxa1 {[%clk 0:02:21.9]} 24... Rb8 {[%clk 0:00:23.6]} 25. Ra7
{[%clk 0:02:16.1]} 25... Bf8 {[%clk 0:00:20.9]} 26. Ba6 {[%clk 0:01:53.4]} 26...
Nf4 {[%clk 0:00:16.7]} 27. Nd5 {[%clk 0:01:37.6]} 27... Nxd5 {[%clk 0:00:13.6]}
28. exd5 {[%clk 0:01:37.7]} 28... Qd7 {[%clk 0:00:07.9]} 29. Bc4 {[%clk
0:01:06.2]} 29... Qd6 {[%clk 0:00:05.4]} 30. Qd3 {[%clk 0:00:56.2]} 30... Bc8
{[%clk 0:00:04.6]} 31. h3 {[%clk 0:00:52.2]} 31... Bf5 {[%clk 0:00:04.6]} 32.
Qd2 {[%clk 0:00:46.6]} 32... Rb1+ {[%clk 0:00:04.6]} 33. Kh2 {[%clk 0:00:45.8]}
33... Qd8 {[%clk 0:00:01.4]} 34. d6 {[%clk 0:00:42]} 34... Bxd6 {[%clk
0:00:01.6]} 35. Rxf7 {[%clk 0:00:38.8]} 35... Kh8 {[%clk 0:00:02]} 36. Bc5
{[%clk 0:00:35.7]} 1-0

[Event "*** Titled Tuesday Blitz"]
[Site "Chess.com"]
[Date "2021.04.20"]
[Round "9"]
[White "Agoking701"]
[Black "ChampStan"]
[Result "1-0"]
[WhiteElo "2310"]
[BlackElo "2095"]
[TimeControl "180+1"]
[EndTime "11:44:32 PDT"]
[Termination "Agoking701 won by resignation"]

1. Nc3 {[%clk 0:03:00.5]} 1... g6 {[%clk 0:02:44.3]} 2. h4 {[%clk 0:02:59.2]}
2... h5 {[%clk 0:02:40.6]} 3. d4 {[%clk 0:02:57.8]} 3... Bg7 {[%clk 0:02:40.6]}
4. Nf3 {[%clk 0:02:57.4]} 4... Nf6 {[%clk 0:02:38.2]} 5. Bg5 {[%clk 0:02:54.4]}
5... d6 {[%clk 0:02:32]} 6. e4 {[%clk 0:02:54.2]} 6... Bg4 {[%clk 0:02:21.4]} 7.
Qd2 {[%clk 0:02:51]} 7... c6 {[%clk 0:02:11.4]} 8. Nh2 {[%clk 0:02:45.7]} 8...
Be6 {[%clk 0:02:08.9]} 9. Be2 {[%clk 0:02:34.8]} 9... Nbd7 {[%clk 0:01:48.8]}
10. O-O {[%clk 0:02:29.3]} 10... O-O {[%clk 0:01:42.8]} 11. f4 {[%clk 0:02:27]}
11... Bg4 {[%clk 0:01:28.9]} 12. Nxg4 {[%clk 0:02:22.5]} 12... Nxg4 {[%clk
0:01:23]} 13. f5 {[%clk 0:02:15.4]} 13... Qb6 {[%clk 0:01:17.4]} 14. Rad1 {[%clk
0:01:33.6]} 14... Ndf6 {[%clk 0:01:14.2]} 15. Na4 {[%clk 0:01:17.8]} 15... Qc7
{[%clk 0:01:11.1]} 16. Qf4 {[%clk 0:00:58.2]} 16... e5 {[%clk 0:00:58.5]} 17.
dxe5 {[%clk 0:00:49]} 17... dxe5 {[%clk 0:00:57.1]} 18. Qf3 {[%clk 0:00:40.8]}
18... Qa5 {[%clk 0:00:43.7]} 19. b3 {[%clk 0:00:33.4]} 19... Qb4 {[%clk
0:00:33]} 20. Bd3 {[%clk 0:00:28.7]} 20... b5 {[%clk 0:00:31.5]} 21. c3 {[%clk
0:00:27.4]} 21... Qa5 {[%clk 0:00:28.7]} 22. Nc5 {[%clk 0:00:19.3]} 22... Qxc3
{[%clk 0:00:27.4]} 23. Rc1 {[%clk 0:00:17.1]} 23... Qd4+ {[%clk 0:00:27.7]} 24.
Kh1 {[%clk 0:00:17.1]} 24... Nh7 {[%clk 0:00:16.7]} 25. Be7 {[%clk 0:00:13.5]}
25... Rfe8 {[%clk 0:00:14.4]} 26. fxg6 {[%clk 0:00:13.8]} 26... fxg6 {[%clk
0:00:14]} 27. Qf7+ {[%clk 0:00:11.5]} 27... Kh8 {[%clk 0:00:13.8]} 28. Ne6
{[%clk 0:00:11.5]} 1-0

[Event "*** Titled Tuesday Blitz"]
[Site "Chess.com"]
[Date "2021.04.20"]
[Round "9"]
[White "Reader777"]
[Black "korkmaz16"]
[Result "0-1"]
[WhiteElo "2661"]
[BlackElo "2469"]
[TimeControl "180+1"]
[EndTime "11:44:33 PDT"]
[Termination "korkmaz16 won by resignation"]

1. d4 {[%clk 0:03:00.9]} 1... d5 {[%clk 0:02:59.3]} 2. c4 {[%clk 0:03:00.6]}
2... e5 {[%clk 0:02:58.4]} 3. dxe5 {[%clk 0:02:59.7]} 3... d4 {[%clk 0:02:58.2]}
4. Nf3 {[%clk 0:03:00]} 4... Nc6 {[%clk 0:02:58.1]} 5. g3 {[%clk 0:02:59.9]}
5... Be6 {[%clk 0:02:57.4]} 6. Nbd2 {[%clk 0:02:54.5]} 6... Qd7 {[%clk
0:02:57.6]} 7. Bg2 {[%clk 0:02:54.7]} 7... Bh3 {[%clk 0:02:56.3]} 8. Bxh3 {[%clk
0:02:51.4]} 8... Qxh3 {[%clk 0:02:55.7]} 9. Qa4 {[%clk 0:02:51.6]} 9... O-O-O
{[%clk 0:02:51.4]} 10. a3 {[%clk 0:02:45.5]} 10... d3 {[%clk 0:02:47.9]} 11. e4
{[%clk 0:02:16]} 11... Bc5 {[%clk 0:02:42.5]} 12. b4 {[%clk 0:02:04.9]} 12...
Qg2 {[%clk 0:02:20.3]} 13. Rf1 {[%clk 0:02:02.2]} 13... Bd4 {[%clk 0:02:18.7]}
14. b5 {[%clk 0:01:54.7]} 14... Nxe5 {[%clk 0:02:02.6]} 15. Nxe5 {[%clk
0:01:18.1]} 15... Bxe5 {[%clk 0:01:49.4]} 16. Rb1 {[%clk 0:01:11.9]} 16... Kb8
{[%clk 0:01:25.1]} 17. Bb2 {[%clk 0:00:52.9]} 17... Bxb2 {[%clk 0:01:24.6]} 18.
Rxb2 {[%clk 0:00:53.2]} 18... Nf6 {[%clk 0:01:25.3]} 19. Qd1 {[%clk 0:00:44.8]}
19... Rhe8 {[%clk 0:01:16.5]} 20. Qf3 {[%clk 0:00:26.8]} 20... Qxf3 {[%clk
0:01:01.5]} 21. Nxf3 {[%clk 0:00:26.6]} 21... Rxe4+ {[%clk 0:01:02.1]} 22. Kd1
{[%clk 0:00:25.9]} 22... Rxc4 {[%clk 0:01:01.6]} 23. Re1 {[%clk 0:00:25.1]}
23... Ne4 {[%clk 0:00:51]} 24. Ne5 {[%clk 0:00:24.4]} 24... Rcd4 {[%clk
0:00:33.8]} 25. Nf3 {[%clk 0:00:14.2]} 25... Rc4 {[%clk 0:00:29.4]} 26. Re3
{[%clk 0:00:10.2]} 26... f5 {[%clk 0:00:23.2]} 27. Ne5 {[%clk 0:00:04.5]} 27...
d2 {[%clk 0:00:17.8]} 28. Nxc4 {[%clk 0:00:01.7]} 28... Nxf2+ {[%clk 0:00:17.6]}
0-1

[Event "*** Titled Tuesday Blitz"]
[Site "Chess.com"]
[Date "2021.04.20"]
[Round "9"]
[White "chessbia"]
[Black "Mikhal867"]
[Result "0-1"]
[WhiteElo "2315"]
[BlackElo "2445"]
[TimeControl "180+1"]
[EndTime "11:44:33 PDT"]
[Termination "Mikhal867 won on time"]

1. d4 {[%clk 0:03:00.9]} 1... g6 {[%clk 0:02:54.1]} 2. c4 {[%clk 0:02:59.2]}
2... Bg7 {[%clk 0:02:52.7]} 3. Nc3 {[%clk 0:02:55.2]} 3... d6 {[%clk 0:02:48.7]}
4. e4 {[%clk 0:02:54.8]} 4... Nf6 {[%clk 0:02:47.7]} 5. Bd3 {[%clk 0:02:54.2]}
5... O-O {[%clk 0:02:47]} 6. Nge2 {[%clk 0:02:54]} 6... e5 {[%clk 0:02:46.9]} 7.
d5 {[%clk 0:02:50.6]} 7... a5 {[%clk 0:02:45.9]} 8. O-O {[%clk 0:02:49.1]} 8...
Na6 {[%clk 0:02:45.8]} 9. Bc2 {[%clk 0:02:49.6]} 9... Nc5 {[%clk 0:02:45.4]} 10.
Rb1 {[%clk 0:02:48.9]} 10... Bd7 {[%clk 0:02:37.6]} 11. b3 {[%clk 0:02:47.9]}
11... Nh5 {[%clk 0:02:32.6]} 12. a3 {[%clk 0:02:46.7]} 12... f5 {[%clk
0:02:25.8]} 13. exf5 {[%clk 0:02:47.6]} 13... gxf5 {[%clk 0:02:23.5]} 14. f4
{[%clk 0:02:47.6]} 14... e4 {[%clk 0:02:18.5]} 15. Be3 {[%clk 0:02:47.1]} 15...
Kh8 {[%clk 0:02:07.7]} 16. b4 {[%clk 0:02:39.1]} 16... axb4 {[%clk 0:02:07.2]}
17. axb4 {[%clk 0:02:40]} 17... Na6 {[%clk 0:02:07]} 18. Qd2 {[%clk 0:02:38.2]}
18... Rg8 {[%clk 0:02:03.8]} 19. Bd4 {[%clk 0:02:29.4]} 19... Qh4 {[%clk
0:02:00]} 20. Nd1 {[%clk 0:02:22.2]} 20... Nf6 {[%clk 0:01:53.7]} 21. Ne3 {[%clk
0:01:46.2]} 21... Ng4 {[%clk 0:01:51.3]} 22. h3 {[%clk 0:01:30.2]} 22... Ne5
{[%clk 0:01:20.8]} 23. fxe5 {[%clk 0:01:00.7]} 23... dxe5 {[%clk 0:01:20.1]} 24.
Bc3 {[%clk 0:00:31.6]} 24... f4 {[%clk 0:01:18.5]} 25. Nd1 {[%clk 0:00:09.3]}
25... f3 {[%clk 0:01:14.9]} 26. Nc1 {[%clk 0:00:04.3]} 26... fxg2 {[%clk
0:01:04.5]} 27. Rf2 {[%clk 0:00:04.1]} 27... Qxh3 {[%clk 0:00:58]} 28. Rxg2
{[%clk 0:00:04]} 28... Bf6 {[%clk 0:00:57.7]} 29. Ne3 {[%clk 0:00:02.5]} 29...
Rxg2+ {[%clk 0:00:52.9]} 30. Nxg2 {[%clk 0:00:03.4]} 30... Rg8 {[%clk
0:00:51.2]} 31. Nb3 {[%clk 0:00:02.9]} 31... Bg4 {[%clk 0:00:29.7]} 32. Nc5
{[%clk 0:00:01.4]} 32... Bf3 {[%clk 0:00:26]} 0-1

[Event "*** Titled Tuesday Blitz"]
[Site "Chess.com"]
[Date "2021.04.20"]
[Round "9"]
[White "jraosam"]
[Black "vova-79"]
[Result "0-1"]
[WhiteElo "1922"]
[BlackElo "2531"]
[TimeControl "180+1"]
[EndTime "11:44:34 PDT"]
[Termination "vova-79 won on time"]

1. c4 {[%clk 0:03:00.9]} 1... c6 {[%clk 0:02:59.1]} 2. d4 {[%clk 0:03:00.4]}
2... d5 {[%clk 0:02:58.3]} 3. e3 {[%clk 0:03:00.1]} 3... Nf6 {[%clk 0:02:57.2]}
4. Nf3 {[%clk 0:03:00.1]} 4... e6 {[%clk 0:02:56.6]} 5. Nbd2 {[%clk 0:03:00]}
5... Nbd7 {[%clk 0:02:55.7]} 6. Bd3 {[%clk 0:02:59.3]} 6... Be7 {[%clk
0:02:54.9]} 7. O-O {[%clk 0:02:59]} 7... O-O {[%clk 0:02:54.3]} 8. b3 {[%clk
0:02:58.9]} 8... b6 {[%clk 0:02:53.8]} 9. Bb2 {[%clk 0:02:58.8]} 9... Bb7 {[%clk
0:02:53.7]} 10. Ne5 {[%clk 0:02:58.8]} 10... Nxe5 {[%clk 0:02:52.6]} 11. dxe5
{[%clk 0:02:59.7]} 11... Nd7 {[%clk 0:02:53.5]} 12. f4 {[%clk 0:02:59.5]} 12...
Nc5 {[%clk 0:02:51.7]} 13. Bc2 {[%clk 0:02:58.1]} 13... dxc4 {[%clk 0:02:48.1]}
14. Nxc4 {[%clk 0:02:51.7]} 14... Qxd1 {[%clk 0:02:45.8]} 15. Raxd1 {[%clk
0:02:52.6]} 15... Rfd8 {[%clk 0:02:46.3]} 16. Nd6 {[%clk 0:02:34.4]} 16... Ba6
{[%clk 0:02:44.9]} 17. Rfe1 {[%clk 0:02:34]} 17... Nb7 {[%clk 0:02:43.1]} 18.
Ba3 {[%clk 0:02:00.5]} 18... c5 {[%clk 0:02:36.1]} 19. Be4 {[%clk 0:01:57]}
19... Rab8 {[%clk 0:02:35.4]} 20. Nc4 {[%clk 0:01:34]} 20... Rxd1 {[%clk
0:02:24.6]} 21. Rxd1 {[%clk 0:01:33.4]} 21... Rd8 {[%clk 0:02:25.5]} 22. Rxd8+
{[%clk 0:01:30.4]} 22... Nxd8 {[%clk 0:02:24.4]} 23. Nd6 {[%clk 0:01:29.1]}
23... Kf8 {[%clk 0:02:20.9]} 24. Bb2 {[%clk 0:01:23]} 24... h6 {[%clk 0:02:08]}
25. a3 {[%clk 0:01:08.5]} 25... f6 {[%clk 0:01:59.7]} 26. b4 {[%clk 0:01:03.5]}
26... cxb4 {[%clk 0:01:55.2]} 27. axb4 {[%clk 0:01:02.8]} 27... Bxd6 {[%clk
0:01:55.6]} 28. exd6 {[%clk 0:01:02.2]} 28... Ke8 {[%clk 0:01:56]} 29. Bg6+
{[%clk 0:00:35.4]} 29... Kd7 {[%clk 0:01:55.2]} 30. Ba3 {[%clk 0:00:36.3]} 30...
Bb5 {[%clk 0:01:53.5]} 31. e4 {[%clk 0:00:28.1]} 31... Kxd6 {[%clk 0:01:51.9]}
32. e5+ {[%clk 0:00:22.3]} 32... fxe5 {[%clk 0:01:44.4]} 33. fxe5+ {[%clk
0:00:23.2]} 33... Ke7 {[%clk 0:01:43.9]} 34. Kf2 {[%clk 0:00:16.2]} 34... Nc6
{[%clk 0:01:42.9]} 35. Bb1 {[%clk 0:00:03.1]} 35... Nxe5 {[%clk 0:01:41]} 36.
Bb2 {[%clk 0:00:01.7]} 36... Ng4+ {[%clk 0:01:36.9]} 37. Kg3 {[%clk 0:00:01.5]}
37... Nf6 {[%clk 0:01:37.8]} 38. Be5 {[%clk 0:00:01.5]} 38... Kd7 {[%clk
0:01:35.4]} 39. Bb8 {[%clk 0:00:02]} 39... a5 {[%clk 0:01:34.9]} 40. Ba7 {[%clk
0:00:02.5]} 40... Kc7 {[%clk 0:01:30.3]} 41. bxa5 {[%clk 0:00:03.4]} 41... bxa5
{[%clk 0:01:30.1]} 42. Bd4 {[%clk 0:00:04.3]} 42... Kd6 {[%clk 0:01:29.1]} 43.
Bb2 {[%clk 0:00:04]} 43... e5 {[%clk 0:01:27.5]} 44. Kf3 {[%clk 0:00:03.9]}
44... a4 {[%clk 0:01:26.4]} 45. g4 {[%clk 0:00:04.2]} 45... Bc6+ {[%clk
0:01:25]} 46. Kg3 {[%clk 0:00:04.2]} 46... Bd5 {[%clk 0:01:23.5]} 47. Ba3+
{[%clk 0:00:02.6]} 47... Ke6 {[%clk 0:01:23.1]} 48. Bf5+ {[%clk 0:00:02.3]}
48... Kf7 {[%clk 0:01:22.4]} 49. Bc8 {[%clk 0:00:01.5]} 49... Be6 {[%clk
0:01:20.1]} 0-1

[Event "*** Titled Tuesday Blitz"]
[Site "Chess.com"]
[Date "2021.04.20"]
[Round "9"]
[White "Arystanner"]
[Black "Skat2704"]
[Result "1-0"]
[WhiteElo "2809"]
[BlackElo "2671"]
[TimeControl "180+1"]
[EndTime "11:44:37 PDT"]
[Termination "Arystanner won by resignation"]

1. e4 {[%clk 0:03:00]} 1... c6 {[%clk 0:02:55.2]} 2. d4 {[%clk 0:02:58.2]} 2...
d5 {[%clk 0:02:54.8]} 3. exd5 {[%clk 0:02:59.1]} 3... cxd5 {[%clk 0:02:54.3]} 4.
c4 {[%clk 0:02:59.8]} 4... e6 {[%clk 0:02:53.6]} 5. Nc3 {[%clk 0:03:00.1]} 5...
Nf6 {[%clk 0:02:51.3]} 6. Nf3 {[%clk 0:03:00.1]} 6... Be7 {[%clk 0:02:50.2]} 7.
cxd5 {[%clk 0:02:59.6]} 7... Nxd5 {[%clk 0:02:47.1]} 8. Bd3 {[%clk 0:02:59]}
8... O-O {[%clk 0:02:45.6]} 9. O-O {[%clk 0:02:58.7]} 9... b6 {[%clk 0:02:39]}
10. Qc2 {[%clk 0:02:42]} 10... h6 {[%clk 0:02:32.5]} 11. Nxd5 {[%clk 0:02:41.9]}
11... exd5 {[%clk 0:02:31.8]} 12. Bf4 {[%clk 0:02:40.2]} 12... Bb7 {[%clk
0:02:23.7]} 13. Rac1 {[%clk 0:02:39.4]} 13... Nc6 {[%clk 0:02:18.8]} 14. a3
{[%clk 0:02:38]} 14... Rc8 {[%clk 0:02:11.4]} 15. Qd2 {[%clk 0:02:35.2]} 15...
Bf6 {[%clk 0:02:02.4]} 16. Bf5 {[%clk 0:02:25.3]} 16... Ra8 {[%clk 0:01:58.7]}
17. Bxh6 {[%clk 0:02:10.3]} 17... Ne7 {[%clk 0:01:36.6]} 18. Bb1 {[%clk
0:01:45.6]} 18... gxh6 {[%clk 0:00:55.7]} 19. Qxh6 {[%clk 0:01:46.5]} 19... Ng6
{[%clk 0:00:56]} 20. Bxg6 {[%clk 0:01:45.9]} 20... fxg6 {[%clk 0:00:56]} 21.
Qxg6+ {[%clk 0:01:46.8]} 21... Kh8 {[%clk 0:00:53.9]} 22. Rc3 {[%clk 0:01:29.4]}
22... Qe7 {[%clk 0:00:42.9]} 23. Ne5 {[%clk 0:00:46.6]} 23... Qg7 {[%clk
0:00:34.2]} 24. Qh5+ {[%clk 0:00:41.1]} 24... Qh7 {[%clk 0:00:30.1]} 25. Ng6+
{[%clk 0:00:35.1]} 25... Kg7 {[%clk 0:00:25.5]} 26. Qxh7+ {[%clk 0:00:36]} 26...
Kxh7 {[%clk 0:00:25]} 27. Nxf8+ {[%clk 0:00:36.9]} 27... Rxf8 {[%clk 0:00:24.2]}
28. Rc7+ {[%clk 0:00:37.1]} 28... Kg6 {[%clk 0:00:22]} 29. Rxb7 {[%clk
0:00:37.2]} 29... Bxd4 {[%clk 0:00:22]} 30. Rxa7 {[%clk 0:00:27.7]} 30... Bxb2
{[%clk 0:00:20.3]} 31. a4 {[%clk 0:00:28.2]} 31... d4 {[%clk 0:00:19]} 32. Rd7
{[%clk 0:00:28.4]} 32... Kf5 {[%clk 0:00:14.9]} 33. Re1 {[%clk 0:00:28.5]} 33...
Rc8 {[%clk 0:00:12]} 34. Rd5+ {[%clk 0:00:25.3]} 34... Kf6 {[%clk 0:00:11.8]}
35. Rb5 {[%clk 0:00:25.1]} 35... Rc6 {[%clk 0:00:11.4]} 1-0

[Event "*** Titled Tuesday Blitz"]
[Site "Chess.com"]
[Date "2021.04.20"]
[Round "9"]
[White "Nozdrachev_Leonid"]
[Black "GregShahade"]
[Result "1-0"]
[WhiteElo "2562"]
[BlackElo "2683"]
[TimeControl "180+1"]
[EndTime "11:44:37 PDT"]
[Termination "Nozdrachev_Leonid won by resignation"]

1. e4 {[%clk 0:03:00.9]} 1... e5 {[%clk 0:02:59.7]} 2. Nf3 {[%clk 0:03:00.2]}
2... Nc6 {[%clk 0:03:00]} 3. Bb5 {[%clk 0:03:00.4]} 3... a6 {[%clk 0:03:00.4]}
4. Ba4 {[%clk 0:03:00.8]} 4... Nf6 {[%clk 0:03:00.2]} 5. O-O {[%clk 0:03:01.1]}
5... Be7 {[%clk 0:03:00.4]} 6. Bxc6 {[%clk 0:03:00.7]} 6... dxc6 {[%clk
0:02:59]} 7. Re1 {[%clk 0:03:01.3]} 7... Bg4 {[%clk 0:02:53.6]} 8. h3 {[%clk
0:02:59.1]} 8... Bh5 {[%clk 0:02:36.1]} 9. g4 {[%clk 0:02:57.3]} 9... Nxg4
{[%clk 0:02:36.2]} 10. hxg4 {[%clk 0:02:53.5]} 10... Bxg4 {[%clk 0:02:36.4]} 11.
Qe2 {[%clk 0:02:47.6]} 11... Bc5 {[%clk 0:02:34]} 12. d4 {[%clk 0:02:34.5]}
12... exd4 {[%clk 0:02:23.6]} 13. Qc4 {[%clk 0:02:17.5]} 13... Bxf3 {[%clk
0:01:08.2]} 14. Qxc5 {[%clk 0:02:15.7]} 14... Qh4 {[%clk 0:00:50.3]} 15. Qe5+
{[%clk 0:02:15.1]} 15... Kf8 {[%clk 0:00:50.2]} 16. Qh2 {[%clk 0:02:15.6]} 16...
Qg4+ {[%clk 0:00:47.9]} 17. Kf1 {[%clk 0:02:04.3]} 17... Bxe4 {[%clk 0:00:42.7]}
18. Qg3 {[%clk 0:01:41.4]} 18... Qxg3 {[%clk 0:00:38.4]} 19. fxg3 {[%clk
0:01:42.3]} 19... Bxc2 {[%clk 0:00:36.6]} 20. Bf4 {[%clk 0:01:40.8]} 20... h5
{[%clk 0:00:20.5]} 21. Na3 {[%clk 0:01:34.1]} 21... Bf5 {[%clk 0:00:19.1]} 22.
Rad1 {[%clk 0:01:30.5]} 22... Rd8 {[%clk 0:00:13.9]} 23. Bxc7 {[%clk 0:01:29.2]}
23... Rd7 {[%clk 0:00:14.5]} 24. Bb6 {[%clk 0:01:28.8]} 24... d3 {[%clk
0:00:12.9]} 25. Nc4 {[%clk 0:01:24]} 25... h4 {[%clk 0:00:12.2]} 26. Bc5+ {[%clk
0:01:19.8]} 26... Kg8 {[%clk 0:00:11.9]} 27. Re8+ {[%clk 0:01:19.7]} 27... Kh7
{[%clk 0:00:12.5]} 28. Rxh8+ {[%clk 0:01:19.8]} 28... Kxh8 {[%clk 0:00:13.4]}
29. gxh4 {[%clk 0:01:19.3]} 29... Rd5 {[%clk 0:00:13.2]} 30. Bb6 {[%clk
0:01:11.9]} 30... Bg6 {[%clk 0:00:11.2]} 31. Kf2 {[%clk 0:01:06.6]} 31... Kh7
{[%clk 0:00:11.5]} 32. Ke3 {[%clk 0:01:05.5]} 32... Rh5 {[%clk 0:00:10.7]} 33.
Rh1 {[%clk 0:00:58.5]} 33... f6 {[%clk 0:00:11.2]} 34. Bd4 {[%clk 0:00:51.9]}
34... b5 {[%clk 0:00:08.7]} 35. Nd6 {[%clk 0:00:45.4]} 35... c5 {[%clk
0:00:09.1]} 36. Bc3 {[%clk 0:00:45.5]} 36... c4 {[%clk 0:00:08.4]} 37. a4 {[%clk
0:00:39.7]} 37... Rd5 {[%clk 0:00:08.6]} 38. Ne4 {[%clk 0:00:29.9]} 38... Rd6
{[%clk 0:00:06.6]} 39. Nxd6 {[%clk 0:00:29.3]} 39... f5 {[%clk 0:00:06.1]} 40.
h5 {[%clk 0:00:28.2]} 1-0

[Event "*** Titled Tuesday Blitz"]
[Site "Chess.com"]
[Date "2021.04.20"]
[Round "9"]
[White "Zq1"]
[Black "vanyakuba"]
[Result "0-1"]
[WhiteElo "2519"]
[BlackElo "2408"]
[TimeControl "180+1"]
[EndTime "11:44:40 PDT"]
[Termination "vanyakuba won by resignation"]

1. d4 {[%clk 0:03:00.9]} 1... d5 {[%clk 0:02:59.9]} 2. c4 {[%clk 0:03:00.7]}
2... e6 {[%clk 0:03:00.2]} 3. Nc3 {[%clk 0:02:59.9]} 3... c5 {[%clk 0:03:00.6]}
4. cxd5 {[%clk 0:02:59.2]} 4... cxd4 {[%clk 0:03:00.7]} 5. Qxd4 {[%clk
0:02:58.3]} 5... Nc6 {[%clk 0:02:59.7]} 6. Qd1 {[%clk 0:02:58]} 6... exd5 {[%clk
0:02:59.9]} 7. Qxd5 {[%clk 0:02:57.9]} 7... Bd7 {[%clk 0:03:00.3]} 8. Nf3 {[%clk
0:02:52]} 8... Nf6 {[%clk 0:03:00.2]} 9. Qd1 {[%clk 0:02:50.9]} 9... Bc5 {[%clk
0:03:00.3]} 10. e3 {[%clk 0:02:50.8]} 10... Qe7 {[%clk 0:03:00.3]} 11. Be2
{[%clk 0:02:49.5]} 11... O-O-O {[%clk 0:03:00.4]} 12. O-O {[%clk 0:02:47.3]}
12... g5 {[%clk 0:03:00.2]} 13. Nd4 {[%clk 0:02:30.9]} 13... Kb8 {[%clk
0:02:52.2]} 14. Bf3 {[%clk 0:02:15.3]} 14... Ne5 {[%clk 0:02:49.3]} 15. b4
{[%clk 0:01:54.7]} 15... Nxf3+ {[%clk 0:02:14.7]} 16. Qxf3 {[%clk 0:01:53.2]}
16... Bg4 {[%clk 0:02:14.8]} 17. Nf5 {[%clk 0:01:46.6]} 17... Qc7 {[%clk
0:01:32.4]} 18. Qg3 {[%clk 0:01:42.8]} 18... Qxg3 {[%clk 0:01:17.3]} 19. Nxg3
{[%clk 0:01:11.7]} 19... Bxb4 {[%clk 0:01:17.4]} 20. Bb2 {[%clk 0:00:56.1]}
20... Rhe8 {[%clk 0:01:06.5]} 21. f3 {[%clk 0:00:45.7]} 21... Bc8 {[%clk
0:00:54.5]} 22. Nce4 {[%clk 0:00:40.3]} 22... Nd5 {[%clk 0:00:44.4]} 23. Nxg5
{[%clk 0:00:28.5]} 23... Nxe3 {[%clk 0:00:42.7]} 24. Rf2 {[%clk 0:00:26.2]}
24... Rd1+ {[%clk 0:00:32.9]} 25. Rxd1 {[%clk 0:00:23.6]} 25... Nxd1 {[%clk
0:00:33.8]} 26. Rc2 {[%clk 0:00:21.2]} 26... Re1+ {[%clk 0:00:23.9]} 27. Nf1
{[%clk 0:00:19.1]} 27... Bf5 {[%clk 0:00:16.1]} 28. Ne4 {[%clk 0:00:16.6]} 28...
Ne3 {[%clk 0:00:09.3]} 29. Rf2 {[%clk 0:00:13.1]} 29... Bxe4 {[%clk 0:00:05.5]}
30. fxe4 {[%clk 0:00:09.5]} 30... Nxf1 {[%clk 0:00:05.9]} 31. Bd4 {[%clk
0:00:06.2]} 31... Ne3+ {[%clk 0:00:04.7]} 0-1